fUST/lending_fUST_20250527
["ID","MTS","AMOUNT","RATE_DAILY","PERIOD"]
[362502307,1748343035204,-420.0,0.00019178,2]
[362502308,1748343035216,-430.0,0.00019178,2]
[362502309,1748343035226,-430.0,0.00019178,2]
[362502310,1748343035237,-430.0,0.00019178,2]
[362502311,1748343035247,-401.85675123,0.00019178,2]
[362502312,1748343035256,-451.16714129,0.00019178,2]
[362502313,1748343035267,-430.0,0.00019178,2]
[362502314,1748343035276,-430.0,0.00019178,2]
[362502315,1748343035287,-421.6836438,0.00019178,2]
[362502316,1748343035297,-370.0,0.00019178,2]
[362502317,1748343035306,-430.0,0.00019178,2]
[362502318,1748343035316,-430.0,0.00019178,2]
[362502319,1748343035326,-430.0,0.00019178,2]
[362502320,1748343035335,-430.0,0.00019178,2]
[362502321,1748343035345,-430.0,0.00019178,2]
[362502322,1748343035355,-430.0,0.00019178,2]
[362502323,1748343035365,-430.0,0.00019178,2]
[362502324,1748343035375,-430.0,0.00019178,2]
[362502325,1748343035386,-430.0,0.00019178,2]
[362502326,1748343035395,-430.0,0.00019178,2]
[362502327,1748343035405,-430.0,0.00019178,2]
[362502328,1748343035415,-430.0,0.00019178,2]
[362502329,1748343035426,-430.0,0.00019178,2]
[362502330,1748343035435,-430.0,0.00019178,2]
[362502331,1748343035445,-430.0,0.00019178,2]
[362502332,1748343035456,-430.0,0.00019178,2]
[362502333,1748343035467,-430.0,0.00019178,2]
[362502334,1748343035483,-430.0,0.00019178,2]
[362502335,1748343035493,-430.0,0.00019178,2]
[362502336,1748343035503,-430.0,0.00019178,2]
[362502337,1748343035514,-430.0,0.00019178,2]
[362502338,1748343035523,-403.63718952,0.00019178,2]
[362502339,1748343035533,-406.70531427,0.00019178,2]
[362502340,1748343035544,-431.43277652,0.00019178,2]
[362502341,1748343035555,-430.0,0.00019178,2]
[362502342,1748343035565,-430.0,0.00019178,2]
[362502343,1748343035575,-430.0,0.00019178,2]
[362502344,1748343035585,-430.0,0.00019178,2]
[362502345,1748343035596,-430.0,0.00019178,2]
[362502346,1748343035607,-430.0,0.00019178,2]
[362502347,1748343035618,-430.0,0.00019178,2]
[362502348,1748343035628,-430.0,0.00019178,2]
[362502349,1748343035637,-430.0,0.00019178,2]
[362502350,1748343035647,-430.0,0.00019178,2]
[362502351,1748343035656,-430.0,0.00019178,2]
[362502352,1748343035667,-430.0,0.00019178,2]
[362502353,1748343035677,-275.59575239,0.00019178,2]
[362502354,1748343035686,-562.58357322,0.00019178,2]
[362502355,1748343035698,-430.0,0.00019178,2]
[362502356,1748343035709,-430.0,0.00019178,2]
[362502357,1748343035720,-400.0,0.00019178,2]
[362502358,1748343035730,-500.0,0.00019178,2]
[362502359,1748343035740,-430.0,0.00019178,2]
[362502360,1748343035751,-500.0,0.00019178,2]
[362502361,1748343035760,-430.0,0.00019178,2]
[362502362,1748343035770,-3496.17,0.00019178,2]
[362502363,1748343035781,-430.0,0.00019178,2]
[362502364,1748343035791,-430.0,0.00019178,2]
[362502365,1748343035802,-200.3334513,0.00019233,2]
[362502366,1748343035813,-201.02457253,0.00019233,2]
[362502367,1748343035824,-198.87583378,0.00019233,2]
[362502368,1748343035837,-206.10873671,0.00019233,2]
[362502369,1748343035853,-200.03049335,0.00019233,2]
[362502370,1748343035864,-204.85516547,0.00019233,2]
[362502371,1748343035874,-199.01664562,0.00019233,2]
[362502372,1748343035886,-199.22247,0.00019233,2]
[362502373,1748343035895,-199.93374772,0.00019233,2]
[362502374,1748343035907,-200.16142368,0.00019233,2]
[362502375,1748343035918,-500.0,0.00019233,2]
[362502376,1748343035930,-500.0,0.00019233,2]
[362502377,1748343035940,-500.0,0.00019233,2]
[362502378,1748343035949,-500.0,0.00019233,2]
[362502379,1748343035959,-151.0,0.00019233,2]
[362502380,1748343035968,-151.0,0.00019233,2]
[362502381,1748343035978,-163.96688806,0.00019233,2]
[362502382,1748343035989,-151.0,0.00019233,2]
[362502383,1748343035998,-500.0,0.00019233,2]
[362502384,1748343036009,-151.0,0.00019233,2]
[362502385,1748343036018,-500.0,0.00019233,2]
[362502386,1748343036028,-500.0,0.00019233,2]
[362502387,1748343036038,-151.0,0.00019233,2]
[362502388,1748343036047,-500.0,0.00019233,2]
[362502389,1748343036057,-200.77453336,0.00019233,2]
[362502390,1748343036066,-500.0,0.00019233,2]
[362502391,1748343036077,-500.0,0.00019233,2]
[362502392,1748343036086,-151.0,0.00019233,2]
[362502393,1748343036096,-500.0,0.00019233,2]
[362502394,1748343036106,-151.0,0.00019233,2]
[362502395,1748343036116,-151.0,0.00019233,2]
[362502396,1748343036127,-199.07423229,0.00019233,2]
[362502397,1748343036142,-500.0,0.0001926,2]
[362502398,1748343036154,-500.0,0.0001926,2]
[362502399,1748343036164,-500.0,0.0001926,2]
[362502400,1748343036174,-500.0,0.0001926,2]
[362502401,1748343036184,-151.0,0.0001926,2]
[362502402,1748343036195,-151.0,0.0001926,2]
[362502403,1748343036204,-151.0,0.0001926,2]
[362502404,1748343036214,-500.0,0.0001926,2]
[362502405,1748343036224,-500.0,0.0001926,2]
[362502406,1748343036234,-500.0,0.0001926,2]
[362502407,1748343036244,-500.0,0.0001926,2]
[362502408,1748343036254,-500.0,0.0001926,2]
[362502409,1748343036264,-500.0,0.0001926,2]
[362502410,1748343036273,-151.0,0.0001926,2]
[362502411,1748343036283,-540.56203915,0.0001926,2]
[362502412,1748343036293,-151.0,0.0001926,2]
[362502413,1748343036303,-151.0,0.0001926,2]
[362502414,1748343036313,-326.87597491,0.00019284,2]
[362502415,1748343036323,-500.0,0.00019288,2]
[362502416,1748343036333,-500.0,0.00019288,2]
[362502417,1748343036344,-500.0,0.00019288,2]
[362502418,1748343036355,-500.0,0.00019288,2]
[362502419,1748343036365,-199.56805601,0.00019288,2]
[362502420,1748343036375,-151.0,0.00019288,2]
[362502421,1748343036385,-151.0,0.00019288,2]
[362502422,1748343036394,-500.0,0.00019288,2]
[362502423,1748343036404,-500.0,0.00019288,2]
[362502424,1748343036414,-448.04849068,0.00019288,2]
[362502425,1748343036423,-500.0,0.00019288,2]
[362502426,1748343036434,-500.0,0.00019288,2]
[362502427,1748343036582,-500.0,0.00019288,2]
[362502428,1748343036593,-151.0,0.00019288,2]
[362502429,1748343036603,-151.0,0.00019288,2]
[362502430,1748343036613,-200.30244171,0.00019288,2]
[362502431,1748343036623,-500.0,0.00019315,2]
[362502432,1748343036632,-500.0,0.00019315,2]
[362502433,1748343036643,-500.0,0.00019315,2]
[362502434,1748343036653,-500.0,0.00019315,2]
[362502435,1748343036662,-193.34465452,0.00019315,2]
[362502436,1748343036672,-151.0,0.00019315,2]
[362502437,1748343036682,-350.66897876,0.00019315,2]
[362502438,1748343036691,-608.55428632,0.00019315,2]
[362502439,1748343036701,-500.0,0.00019315,2]
[362502440,1748343036712,-500.0,0.00019315,2]
[362502441,1748343036723,-500.0,0.00019315,2]
[362502442,1748343036734,-203.56453287,0.00019315,2]
[362502443,1748343036744,-280.68865117,0.00019315,2]
[362502444,1748343036754,-500.0,0.00019343,2]
[362502445,1748343036763,-500.0,0.00019343,2]
[362502446,1748343036773,-500.0,0.00019343,2]
[362502447,1748343036782,-565.41779745,0.00019343,2]
[362502448,1748343036792,-243.17168081,0.00019343,2]
[362502449,1748343036802,-174.31816384,0.00019343,2]
[362502450,1748343036811,-537.42740137,0.00019343,2]
[362502451,1748343036821,-500.0,0.00019343,2]
[362502452,1748343036835,-500.0,0.00019361,2]
[362502453,1748343036845,-500.0,0.0001937,2]
[362502454,1748343036855,-500.0,0.0001937,2]
[362502455,1748343036864,-500.0,0.0001937,2]
[362502456,1748343036875,-500.0,0.0001937,2]
[362502457,1748343036885,-500.0,0.00019397,2]
[362502458,1748343036895,-500.0,0.00019397,2]
[362502459,1748343036905,-500.0,0.00019397,2]
[362502460,1748343036916,-500.0,0.00019397,2]
[362502461,1748343036927,-500.0,0.00019425,2]
[362502462,1748343036937,-271.20400084,0.00019425,2]
[362502463,1748343036947,-500.0,0.00019425,2]
[362502464,1748343036958,-500.0,0.00019425,2]
[362502465,1748343036967,-233.25082279,0.00019452,2]
[362502466,1748343036976,-430.0,0.00019452,2]
[362502467,1748343036987,-430.0,0.00019452,2]
[362502468,1748343036996,-430.0,0.00019452,2]
[362502469,1748343037007,-430.0,0.00019452,2]
[362502470,1748343037016,-430.0,0.00019452,2]
[362502471,1748343037025,-430.0,0.00019452,2]
[362502472,1748343037034,-430.0,0.00019452,2]
[362502473,1748343037043,-500.0,0.00019452,2]
[362502474,1748343037052,-430.0,0.00019452,2]
[362502475,1748343037061,-430.0,0.00019452,2]
[362502476,1748343037071,-430.0,0.00019452,2]
[362502477,1748343037080,-430.0,0.00019452,2]
[362502478,1748343037089,-534.74009,0.00019452,2]
[362502479,1748343037099,-210.56416107,0.00019452,2]
[362502480,1748343037108,-430.0,0.00019452,2]
[362502481,1748343037117,-430.0,0.00019452,2]
[362502482,1748343037126,-430.0,0.00019452,2]
[362502483,1748343037137,-161.79,0.00019452,2]
[362502484,1748343037146,-430.0,0.00019452,2]
[362502485,1748343037156,-430.0,0.00019452,2]
[362502486,1748343037165,-430.0,0.00019452,2]
[362502487,1748343037174,-430.0,0.00019452,2]
[362502488,1748343037184,-490.0,0.00019452,2]
[362502489,1748343037193,-410.0,0.00019452,2]
[362502490,1748343037203,-430.0,0.00019452,2]
[362502491,1748343037212,-430.0,0.00019452,2]
[362502492,1748343037221,-430.0,0.00019452,2]
[362502493,1748343037231,-220.171814,0.00019452,2]
[362502494,1748343037240,-430.0,0.00019452,2]
[362502495,1748343037250,-430.0,0.00019452,2]
[362502496,1748343037259,-430.0,0.00019452,2]
[362502497,1748343037269,-450.0,0.00019452,2]
[362502498,1748343037278,-430.0,0.00019452,2]
[362502499,1748343037287,-430.0,0.00019452,2]
[362502500,1748343037297,-546.13,0.00019452,2]
[362502501,1748343037310,-430.0,0.00019452,2]
[362502502,1748343037319,-430.0,0.00019452,2]
[362502503,1748343037328,-430.0,0.00019452,2]
[362502504,1748343037338,-430.0,0.00019452,2]
[362502505,1748343037347,-430.0,0.00019452,2]
[362502506,1748343037356,-420.0,0.00019452,2]
[362502507,1748343037366,-476.5160786,0.00019452,2]
[362502508,1748343037375,-449.78849894,0.00019452,2]
[362502509,1748343037384,-431.70882322,0.00019452,2]
[362502510,1748343037394,-430.0,0.00019452,2]
[362502511,1748343037403,-314.7704918,0.00019452,2]
[362502512,1748343037411,-430.0,0.00019452,2]
[362502513,1748343037421,-430.0,0.00019452,2]
[362502514,1748343037431,-437.34,0.00019452,2]
[362502515,1748343037442,-430.0,0.00019452,2]
[362502516,1748343037453,-173.51695332,0.00019452,2]
[362502517,1748343037463,-200.34,0.00019452,2]
[362502518,1748343037472,-203.69,0.00019452,2]
[362502519,1748343037481,-430.0,0.00019452,2]
[362502520,1748343037490,-430.0,0.00019452,2]
[362502521,1748343037499,-430.0,0.00019452,2]
[362502522,1748343037508,-430.0,0.00019452,2]
[362502523,1748343037517,-430.0,0.00019452,2]
[362502524,1748343037526,-430.0,0.00019452,2]
[362502525,1748343037535,-430.0,0.00019452,2]
[362502527,1748343037544,-430.0,0.00019452,2]
[362502528,1748343037553,-430.0,0.00019452,2]
[362502529,1748343037562,-430.0,0.00019452,2]
[362502530,1748343037571,-543.71,0.00019452,2]
[362502531,1748343037580,-430.0,0.00019452,2]
[362502532,1748343037589,-473.75,0.00019452,2]
[362502533,1748343037598,-430.0,0.00019452,2]
[362502534,1748343037607,-430.0,0.00019452,2]
[362502535,1748343037616,-430.0,0.00019452,2]
[362502536,1748343037626,-430.0,0.00019452,2]
[362502537,1748343037635,-430.0,0.00019452,2]
[362502539,1748343037645,-430.0,0.00019452,2]
[362502541,1748343037655,-430.0,0.00019452,2]
[362502543,1748343037664,-430.0,0.00019452,2]
[362502545,1748343037674,-430.0,0.00019452,2]
[362502547,1748343037683,-430.0,0.00019452,2]
[362502549,1748343037693,-430.0,0.00019452,2]
[362502551,1748343037702,-430.0,0.00019452,2]
[362502552,1748343037712,-430.0,0.00019452,2]
[362502553,1748343037721,-430.0,0.00019452,2]
[362502554,1748343037731,-430.0,0.00019452,2]
[362502555,1748343037742,-430.0,0.00019452,2]
[362502557,1748343037752,-430.0,0.00019452,2]
[362502558,1748343037762,-430.0,0.00019452,2]
[362502559,1748343037771,-443.52,0.00019452,2]
[362502560,1748343037781,-430.0,0.00019452,2]
[362502561,1748343037790,-430.0,0.00019452,2]
[362502562,1748343037800,-430.0,0.00019452,2]
[362502563,1748343037809,-430.0,0.00019452,2]
[362502564,1748343037819,-402.68366557,0.00019452,2]
[362502565,1748343037828,-430.0,0.00019452,2]
[362502566,1748343037839,-432.00431272,0.00019452,2]
[362502567,1748343037850,-430.0,0.00019452,2]
[362502568,1748343037859,-430.0,0.00019452,2]
[362502569,1748343037868,-430.0,0.00019452,2]
[362502570,1748343037879,-430.0,0.00019452,2]
[362502571,1748343037888,-430.0,0.00019452,2]
[362502572,1748343037897,-430.0,0.00019452,2]
[362502574,1748343037907,-430.0,0.00019452,2]
[362502576,1748343037917,-430.0,0.00019452,2]
[362502577,1748343037927,-430.0,0.00019452,2]
[362502578,1748343037936,-430.0,0.00019452,2]
[362502579,1748343037946,-430.0,0.00019452,2]
[362502580,1748343037955,-430.0,0.00019452,2]
[362502581,1748343037965,-430.0,0.00019452,2]
[362502582,1748343037976,-430.0,0.00019452,2]
[362502583,1748343037985,-430.0,0.00019452,2]
[362502584,1748343037995,-404.42614212,0.00019452,2]
[362502585,1748343038005,-430.0,0.00019452,2]
[362502586,1748343038014,-430.0,0.00019452,2]
[362502587,1748343038024,-430.0,0.00019452,2]
[362502589,1748343038033,-422.79154148,0.00019452,2]
[362502590,1748343038042,-430.0,0.00019452,2]
[362502592,1748343038051,-430.0,0.00019452,2]
[362502593,1748343038061,-430.0,0.00019452,2]
[362502594,1748343038070,-430.0,0.00019452,2]
[362502595,1748343038079,-430.0,0.00019452,2]
[362502596,1748343038089,-430.0,0.00019452,2]
[362502597,1748343038098,-3496.17,0.00019452,2]
[362502598,1748343038107,-430.0,0.00019452,2]
[362502599,1748343038116,-500.0,0.00019452,2]
[362502600,1748343038125,-474.41531002,0.00019452,2]
[362502601,1748343038135,-500.0,0.00019452,2]
[362502602,1748343038144,-500.0,0.0001948,2]
[362502603,1748343038154,-500.0,0.0001948,2]
[362502604,1748343038164,-326.87597491,0.00019489,2]
[362502605,1748343038174,-254.75,0.000195,2]
[362502606,1748343038183,-176.45806439,0.00019507,2]
[362502607,1748343038192,-500.0,0.00019507,2]
[362502608,1748343038201,-500.0,0.00019534,2]
[362502609,1748343038211,-580.37411691,0.00019557,2]
[362502610,1748343038220,-500.0,0.00019562,2]
[362502611,1748343038229,-387.57,0.00019582,2]
[362502612,1748343038239,-242.60691528,0.00019589,2]
[362502613,1748343038248,-326.87597491,0.00019695,2]
[362502614,1748343038257,-430.0,0.00019726,2]
[362502615,1748343038266,-430.0,0.00019726,2]
[362502616,1748343038276,-430.0,0.00019726,2]
[362502617,1748343038285,-430.0,0.00019726,2]
[362502618,1748343038294,-430.0,0.00019726,2]
[362502619,1748343038304,-430.0,0.00019726,2]
[362502620,1748343038313,-207.44756966,0.00019726,2]
[362502621,1748343038322,-430.0,0.00019726,2]
[362502622,1748343038332,-430.0,0.00019726,2]
[362502623,1748343038341,-430.0,0.00019726,2]
[362502624,1748343038350,-430.0,0.00019726,2]
[362502625,1748343038359,-470.0,0.00019726,2]
[362502626,1748343038368,-430.0,0.00019726,2]
[362502627,1748343038378,-430.0,0.00019726,2]
[362502628,1748343038387,-430.0,0.00019726,2]
[362502629,1748343038396,-287.67,0.00019726,2]
[362502630,1748343038405,-430.0,0.00019726,2]
[362502631,1748343038415,-430.0,0.00019726,2]
[362502632,1748343038424,-173.65366645,0.00019726,2]
[362502633,1748343038433,-430.0,0.00019726,2]
[362502634,1748343038442,-430.0,0.00019726,2]
[362502635,1748343038451,-572.91,0.00019726,2]
[362502636,1748343038461,-430.0,0.00019726,2]
[362502637,1748343038471,-430.0,0.00019726,2]
[362502638,1748343038480,-430.0,0.00019726,2]
[362502639,1748343038489,-430.0,0.00019726,2]
[362502640,1748343038500,-430.0,0.00019726,2]
[362502641,1748343038510,-430.0,0.00019726,2]
[362502642,1748343038519,-430.0,0.00019726,2]
[362502643,1748343038529,-466.14,0.00019726,2]
[362502644,1748343038538,-430.0,0.00019726,2]
[362502645,1748343038547,-430.0,0.00019726,2]
[362502646,1748343038557,-475.62,0.00019726,2]
[362502647,1748343038566,-430.0,0.00019726,2]
[362502648,1748343038576,-430.0,0.00019726,2]
[362502649,1748343038586,-430.0,0.00019726,2]
[362502650,1748343038595,-233.49625718,0.00019726,2]
[362502651,1748343038604,-430.0,0.00019726,2]
[362502652,1748343038613,-430.0,0.00019726,2]
[362502653,1748343038623,-430.0,0.00019726,2]
[362502654,1748343038634,-430.0,0.00019726,2]
[362502655,1748343038644,-430.0,0.00019726,2]
[362502656,1748343038655,-168.94,0.00019726,2]
[362502657,1748343038666,-430.0,0.00019726,2]
[362502658,1748343038675,-430.0,0.00019726,2]
[362502659,1748343038684,-430.0,0.00019726,2]
[362502660,1748343038694,-3496.17,0.00019726,2]
[362502661,1748343038703,-430.0,0.00019726,2]
[362502662,1748343038712,-430.0,0.00019754,2]
[362502663,1748343038723,-480.91743094,0.00019754,2]
[362502664,1748343038732,-430.0,0.00019754,2]
[362502665,1748343038741,-430.0,0.00019754,2]
[362502666,1748343038751,-326.87597491,0.000199,2]
[362502667,1748343038760,-160.0,0.00019905,2]
[362502668,1748343038769,-160.0,0.00019905,2]
[362502669,1748343038779,-160.0,0.00019905,2]
[362502670,1748343038789,-160.0,0.00019905,2]
[362502671,1748343038798,-229.18805157,0.0001994,2]
[362502672,1748343038808,-160.0,0.0001994,2]
[362502673,1748343038818,-160.0,0.0001994,2]
[362502674,1748343038828,-160.0,0.0001994,2]
[362502675,1748343038840,-160.0,0.0001994,2]
[362502676,1748343038850,-62211.31116928,0.00019972,2]
[362502677,1748343038872,-129567.83579244,0.00019972,2]
[362502678,1748343038883,-24900.0,0.00019972,2]
[362502679,1748343038893,-8909.3389148,0.0002,3]
[362502680,1748343038903,-173.89925003,0.0002,2]
[362502681,1748343038912,-1180.78433899,0.0002,2]
[362502682,1748343038923,-359.55752897,0.0002,2]
[362502683,1748343038933,-30000.0,0.0002,2]
[362502684,1748343038942,-2678.46873776,0.0002,2]
[362502685,1748343038951,-67277.75429682,0.0002,2]
[362502686,1748343038960,-155.16,0.0002,2]
[362502687,1748343038969,-300.0,0.0002,2]
[362502688,1748343038978,-151.0,0.0002,2]
[362502689,1748343038988,-186.6188672,0.0002,4]
[362502690,1748343038997,-151.0,0.0002,2]
[362502691,1748343039008,-300.39179917,0.0002,2]
[362502692,1748343039018,-263.464013,0.0002,2]
[362502693,1748343039027,-151.0,0.0002,2]
[362502694,1748343039037,-151.0,0.0002,2]
[362502695,1748343039047,-151.0,0.0002,2]
[362502696,1748343039057,-151.0,0.0002,2]
[362502697,1748343039066,-430.0,0.0002,2]
[362502698,1748343039075,-430.0,0.0002,2]
[362502699,1748343039085,-151.0,0.0002,2]
[362502700,1748343039095,-151.0,0.0002,2]
[362502701,1748343039104,-430.0,0.0002,2]
[362502702,1748343039114,-430.0,0.0002,2]
[362502703,1748343039123,-151.0,0.0002,2]
[362502704,1748343039133,-457.65,0.0002,2]
[362502705,1748343039143,-430.0,0.0002,2]
[362502706,1748343039153,-151.0,0.0002,2]
[362502707,1748343039163,-430.0,0.0002,2]
[362502708,1748343039173,-1379.279515,0.0002,2]
[362502709,1748343039182,-1379.279515,0.0002,2]
[362502710,1748343039192,-430.0,0.0002,2]
[362502711,1748343039201,-430.0,0.0002,2]
[362502712,1748343039211,-430.0,0.0002,2]
[362502713,1748343039221,-430.0,0.0002,2]
[362502714,1748343039231,-517.82,0.0002,2]
[362502715,1748343039241,-293.06623274,0.0002,2]
[362502716,1748343039251,-430.0,0.0002,2]
[362502717,1748343039260,-390.0,0.0002,2]
[362502718,1748343039270,-430.0,0.0002,2]
[362502719,1748343039279,-430.0,0.0002,2]
[362502720,1748343039289,-430.0,0.0002,2]
[362502721,1748343039406,-157.89,0.0002,2]
[362502722,1748343039417,-430.0,0.0002,2]
[362502723,1748343039427,-430.0,0.0002,2]
[362502724,1748343039438,-3496.17,0.0002,2]
[362502725,1748343039448,-430.0,0.0002,2]
[362502726,1748343039457,-151.0,0.00020028,2]
[362502727,1748343039468,-151.0,0.00020028,2]
[362502728,1748343039478,-151.0,0.00020028,2]
[362502729,1748343039488,-287.0,0.00020028,2]
[362502730,1748343039498,-430.0,0.00020028,2]
[362502731,1748343039508,-430.0,0.00020028,2]
[362502732,1748343039518,-430.0,0.00020273,2]
[362502733,1748343039528,-430.0,0.00020273,2]
[362502734,1748343039537,-422.95,0.00020273,2]
[362502735,1748343039546,-430.0,0.00020273,2]
[362502736,1748343039556,-344.59748749,0.00020273,2]
[362502737,1748343039566,-430.0,0.00020273,2]
[362502738,1748343039578,-500.04,0.00020273,2]
[362502739,1748343039590,-430.0,0.00020273,2]
[362502740,1748343039599,-430.0,0.00020273,2]
[362502741,1748343039609,-430.0,0.00020273,2]
[362502742,1748343039620,-430.0,0.00020273,2]
[362502743,1748343039630,-430.0,0.00020273,2]
[362502744,1748343039641,-3496.17,0.00020273,2]
[362502745,1748343039652,-430.0,0.00020273,2]
[362502746,1748343039662,-430.0,0.00020302,2]
[362502747,1748343039672,-155.61695211,0.00020421,4]
[362502748,1748343039681,-516.77,0.00020433,2]
[362502749,1748343039691,-430.0,0.00020547,2]
[362502750,1748343039701,-430.0,0.00020547,2]
[362502751,1748343039711,-261.56,0.00020547,2]
[362502752,1748343039721,-430.0,0.00020547,2]
[362502753,1748343039730,-430.0,0.00020547,2]
[362502754,1748343039741,-3496.17,0.00020547,2]
[362502755,1748343039751,-162.801861,0.00020548,2]
[362502756,1748343039760,-331.84,0.00020576,2]
[362502757,1748343039769,-430.0,0.00020821,2]
[362502758,1748343039779,-430.0,0.00020821,2]
[362502759,1748343039788,-430.0,0.00020821,2]
[362502760,1748343039798,-3496.17,0.00020821,2]
[362502761,1748343039807,-242.0,0.00020892,2]
[362502762,1748343039817,-5000.0,0.00021,2]
[362502763,1748343039827,-430.0,0.00021095,2]
[362502764,1748343039838,-430.0,0.00021095,2]
[362502765,1748343039848,-430.0,0.00021095,2]
[362502766,1748343039858,-3496.17,0.00021095,2]
[362502767,1748343039868,-645.96,0.00021285,2]
[362502768,1748343039879,-430.0,0.00021369,2]
[362502769,1748343039889,-430.0,0.00021369,2]
[362502770,1748343039901,-430.0,0.00021369,2]
[362502771,1748343039911,-3496.17,0.00021369,2]
[362502772,1748343039921,-430.0,0.00021643,2]
[362502773,1748343039931,-430.0,0.00021643,2]
[362502774,1748343039941,-430.0,0.00021643,2]
[362502775,1748343039951,-3496.17,0.00021643,2]
[362502776,1748343039960,-25000.0,0.0002166,7]
[362502777,1748343039970,-13219.67880344,0.000218,2]
[362502778,1748343039980,-151.0,0.000219,4]
[362502779,1748343039990,-258.47341434,0.00021917,2]
[362502812,1748343040490,-2844.83049016,0.00018543,2]
[362502814,1748343040500,-430.0,0.00019178,2]
[362502816,1748343040510,-430.0,0.00019178,2]
[362502817,1748343040519,-9903.51157012,0.00019178,2]
[362502819,1748343040532,-667.26032893,0.00019178,2]
[362502821,1748343040542,-288.78965009,0.00019452,2]
[362502823,1748343040551,-430.0,0.00019452,2]
[362502825,1748343040561,-430.0,0.00019726,2]
[362502826,1748343040570,-161.071244,0.0002,2]
[362502828,1748343040580,-430.0,0.0002,2]
[362502830,1748343040589,-171.52658566,0.00021917,2]
[362502832,1748343040599,-430.0,0.00021917,2]
[362502833,1748343040609,-430.0,0.00021917,2]
[362502835,1748343040618,-3496.17,0.00021917,2]
[362502837,1748343040627,-11399.28053667,0.00022,2]
[362502838,1748343040636,-4780.12,0.00022,7]
[362502840,1748343040646,-151.0,0.00022,2]
[362502842,1748343040656,-151.0,0.00022,7]
[362502844,1748343040666,-1379.279515,0.00022,2]
[362502846,1748343040675,-1379.279515,0.00022,2]
[362502847,1748343040685,-5000.0,0.00022,2]
[362502849,1748343040694,-161.071244,0.00022,7]
[362502851,1748343040703,-151.0,0.00022027,7]
[362502854,1748343040713,-151.0,0.00022027,7]
[362502855,1748343040724,-151.0,0.00022066,7]
[362502857,1748343040733,-151.0,0.00022066,7]
[362502859,1748343040744,-242.79342,0.00022066,7]
[362502861,1748343040753,-151.0,0.00022066,7]
[362502862,1748343040763,-151.0,0.00022066,7]
[362502864,1748343040774,-151.0,0.00022066,7]
[362502866,1748343040783,-775.15,0.00022136,2]
[362502868,1748343040792,-300.0,0.00022191,2]
[362502869,1748343040802,-430.0,0.00022191,2]
[362502871,1748343040812,-430.0,0.00022191,2]
[362502873,1748343040821,-430.0,0.00022191,2]
[362502875,1748343040831,-3496.17,0.00022191,2]
[362502876,1748343040844,-153.029289,0.00022199,7]
[362502878,1748343040854,-172.770069,0.00022199,7]
[362502880,1748343040863,-151.0,0.00022199,7]
[362502882,1748343040873,-439.97683526,0.000222,7]